Cogmind - Beta 14 @@@ ROGUE MODE // 2025.01.06 @ 13:15:18 Player: Blaj Result: Self-destructed Performance ------------- Evolutions (3) 1500 Regions Visited (4) 800 Robots Destroyed (78) 390 Value Destroyed (2371) 2371 Prototype IDs (15) 300 Alien Tech Used (0) 0 Bonus (0) 0 TOTAL SCORE: 5361 Bonus ------- None Cogmind --------- Core Integrity 606/700 Matter 113/300 Energy 152/160 System Corruption 1% Temperature Cool (0) Movement Walking (260) Ox2 Location -7/Factory Parts ------- > --- POWER (1) -------- Light Nuclear Core > --- PROPULSION (4) --- Aluminum Leg > --- UTILITY (5) ------ Improved Heat Sink Small Storage Unit Seismic Detector Hardened Medium Armor Plating > --- WEAPON (3) ------- Heavy EM Shotgun > --- INVENTORY (8) ---- Scrap Shield Subdweller Laser Powered Cannon Subdweller Shrapnel Launcher Dirty Datajack (20) Peak State ------------ > --- POWER ------------ Improved Deuterium Engine > --- PROPULSION ------- Light Treads Light Treads Light Treads Spiked Treads > --- UTILITY ---------- Improved Heat Sink Huge Storage Unit Seismic Detector Hardened Medium Armor Plating Hardlight Generator > --- WEAPON ----------- Shock Rifle Shock Rifle Heavy EM Shotgun > --- INVENTORY -------- Subdweller Power Source Subdweller Power Source Light Nuclear Core Subdweller Monowheel Subdweller Monowheel Subdweller Monowheel Subdweller Monowheel High-capacity Storage Unit High-capacity Battery Structural Scanner Subdweller Optics Subdweller Optics Hardened Medium Armor Plating Scrap Shield Beam Rifle Particle Gun Subdweller Laser Powered Cannon Subdweller Machine Gun Mini Grenade Launcher Subdweller Shrapnel Launcher Dirty Datajack Multitool [Rating: 36] Favorites ----------- Power Ion Engine Engine Ion Engine Power Core Light Nuclear Core Propulsion Light Treads Treads Light Treads Leg Aluminum Leg Wheel Compact Wheel Utility Seismic Detector Device Seismic Detector Storage High-capacity Storage Unit Processor Transport Network Coupler Protection Scrap Shield Weapon Light EM Pulse Cannon Energy Gun Shock Rifle Energy Cannon Light EM Pulse Cannon Ballistic Gun Subdweller Machine Gun Launcher Subdweller Shrapnel Launcher Impact Weapon Maul Special Melee Weapon Dirty Datajack Build | -11 -10 -10 -8 -7 ------- Run | Yrd Mat Sub Mat Fac Slots Evolved 6 | . . . 4 2 Power . | . . . . . Propulsion 2 | . . . 2 . Utility 3 | . . . 1 2 Weapon 1 | . . . 1 . Parts Attached 98 | 3 14 44 16 21 Power 7 | . 1 2 2 2 Engine 5 | . 1 2 1 1 Core 2 | . . . 1 1 Reactor . | . . . . . Propulsion 11 | 2 1 4 3 1 Treads 8 | 2 1 2 3 . Leg 1 | . . . . 1 Wheel 2 | . . 2 . . Hover . | . . . . . Flight . | . . . . . Utility 46 | 1 8 28 4 5 Device 29 | 1 6 18 3 1 Storage 5 | . 2 1 . 2 Processor 1 | . . . 1 . Hackware . | . . . . . Protection 11 | . . 9 . 2 Artifact . | . . . . . Weapon 34 | . 4 10 7 13 Energy Gun 14 | . . . 4 10 Energy Cannon 6 | . 3 3 . . Ballistic Gun 6 | . 1 2 3 . Ballistic Cannon . | . . . . . Launcher 6 | . . 3 . 3 Special Weapon . | . . . . . Impact Weapon 1 | . . 1 . . Slashing Weapon . | . . . . . Piercing Weapon . | . . . . . Special Melee Weapon 1 | . . 1 . . Unidentified Prototypes 1 | . . . . 1 Parts Lost 16 | . . 1 4 11 Power 2 | . . . 1 1 Propulsion 5 | . . . 1 4 Utility 3 | . . . 1 2 Weapon 6 | . . 1 1 4 Highest Loss Streak 8 | . . 1 2 8 To Critical Strikes . | . . . . . Average Slot Usage (%) 94 | . 99 93 93 91 Engine 11 | . 14 14 6 1 Treads 26 | . 27 24 34 26 Wheel 2 | . . 3 . . Device 15 | . 14 15 15 20 Storage 6 | . 14 3 9 7 Protection 3 | . . 4 . 6 Energy Gun 4 | . . . 14 21 Energy Cannon 17 | . 26 21 . . Ballistic Gun 4 | . 1 4 7 . Peak Build Rating 36 | 7 10 19 27 36 Average Rating 14 | 6 9 11 22 31 On Entrance 13 | 6 7 10 19 27 Naked Turns . | . . . . . Heaviest Build 115 | 13 54 57 62 115 Greatest Support 80 | 40 40 40 80 80 Greatest Overweight (x) 7 | . 1 3 . 7 Average Overweight (x) . | . . . . . Largest Inventory Capacity 25 | 8 20 20 20 25 Average Capacity 12 | 8 14 8 20 24 Most Carried 25 | 8 15 20 20 25 Average Carried 10 | 6 9 7 19 23 Final Capacity 20 | 8 20 20 20 8 Final Carried 20 | 4 15 20 20 7 Class Distribution -------------------- 70% | Mutant 10% | Scavenger-Mutant 7% | Tank 7% | Scavenger-Tank 3% | Subdweller-Mutant Dominant Class ---------------- Mutant | -10/Materials Mutant | -10/Subcaves Scavenger-Tank | -8/Materials Tank | -7/Factory Resources | -11 -10 -10 -8 -7 ----------- Run | Yrd Mat Sub Mat Fac Matter Collected 1582 | 230 157 601 367 227 Remotely . | . . . . . Salvage Created 3051 | 22 834 988 540 667 Parts 179 | 3 41 68 30 37 Haulers Intercepted 3 | . 2 . 1 . Recyclers Shooed 6 | 1 2 . . 3 Parts Field Recycled . | . . . . . Retrieved Matter . | . . . . . Parts Self-Destructed 13 | . . 13 . . Prevented 1 | . . 1 . . Kills | -11 -10 -10 -8 -7 ------- Run | Yrd Mat Sub Mat Fac Combat Hostiles Destroyed 59 | . 15 21 12 11 Guns 19 | . 3 2 11 3 Cannons 17 | . 10 7 . . AOE 15 | . 1 7 . 7 Classes Destroyed 14 | 1 5 3 1 4 Worker 2 | . 1 . . 1 Builder 3 | . . . . 3 Tunneler 2 | 1 1 . . . Hauler 3 | . 2 . 1 . Recycler 3 | . . . . 3 Operator 1 | . . . . 1 Watcher 5 | . 2 . 1 2 Swarmer 12 | . 2 4 3 3 Grunt 22 | . 13 1 4 4 Brawler 1 | . . . 1 . Sentry 8 | . . 1 4 3 Programmer 1 | . . . . 1 Artisan 2 | . . 2 . . Subdweller 15 | . . 15 . . Best Kill Streak 11 | 1 4 4 3 11 Combat Bots Only 6 | . 4 4 3 6 Max Kills in Single Turn 3 | 1 1 2 1 3 Gunslinging . | . . . . . Exploded 2 | . 1 2 . 1 Melee . | . . . . . Uniques/NPCs Destroyed . | . . . . . Combat | -11 -10 -10 -8 -7 -------- Run | Yrd Mat Sub Mat Fac Hostile Shots Fired 371 | . 44 71 85 171 Missed 134 | . 13 26 27 68 Damage Taken 3145 | . 333 942 683 1187 Core 334 | . 49 107 84 94 Absorbed by Shields 212 | . . . 88 124 Regen/Repaired (Parts) 82 | . 82 . . . Core Remaining (%) 73 | 100 . 37 84 . Volleys Fired 226 | 2 39 79 51 55 Largest 3 | 2 2 2 3 3 Hottest 171 | 90 112 112 171 156 Shots Fired 400 | 4 78 126 92 100 Gun 196 | 4 9 8 92 83 Cannon 179 | . 69 110 . . Launcher 25 | . . 8 . 17 Special . | . . . . . Kinetic 79 | . 9 13 50 7 Thermal 72 | 2 . . 37 33 Explosive 13 | . . 3 . 10 Electromagnetic 236 | 2 69 110 5 50 Robot Hit Streak 25 | 3 14 13 25 9 Robot Miss Streak 4 | . 2 2 4 4 Penetration Max . | . . . . . Secondary Targets 2 | . . . 2 . Max Gunslinging Chain 1 | . . . 1 . Shots Hit Robots 270 | 3 52 88 70 57 Core Hits 122 | 2 24 33 23 40 Critical Kills . | . . . . . Critical Parts Destroyed 1 | . . . 1 . Critical Strikes 7 | 1 2 2 2 . Burn 2 | 1 . . 1 . Destroy 1 | . . . 1 . Corrupt 4 | . 2 2 . . Melee Attacks 1 | . . 1 . . Impact 1 | . . 1 . . Slashing . | . . . . . Piercing . | . . . . . Sneak Attacks . | . . . . . Combat Hostiles . | . . . . . Follow-up Attacks . | . . . . . Damage Inflicted 6979 | 39 1434 2144 1171 2191 Guns 2283 | 39 87 125 1165 867 Cannons 2783 | . 1180 1603 . . Explosions 1886 | . 146 416 . 1324 Melee . | . . . . . Ramming 27 | . 21 . 6 . Kinetic 1644 | . 87 345 674 538 Thermal 992 | 13 146 30 422 381 Explosive 866 | . . 166 . 700 Electromagnetic 3450 | 26 1180 1603 69 572 Impact . | . . . . . Slashing . | . . . . . Piercing . | . . . . . Highest Corruption 2 | . 2 2 . 1 Average Corruption 1 | . 2 2 . 1 Corruption Purged . | . . . . . Corruption Blocked . | . . . . . Effects 70 | . 2 60 . 8 Message Errors 18 | . . 16 . 2 Matter Fused 18 | . . 16 . 2 Heat Flow Errors 8 | . . 8 . . Energy Discharges 10 | . . 8 . 2 Data Loss (minor) 6 | . 1 4 . 1 Data Loss (major) 4 | . 1 2 . 1 Misfires 2 | . . 2 . . Alerts 2 | . . 2 . . Weapon Failures 2 | . . 2 . . Overload Shots . | . . . . . Overflow Damage 152 | . 11 18 . 123 Projectiles 18 | . . 18 . . Explosions 134 | . 11 . . 123 Melee . | . . . . . Knockbacks . | . . . . . Impact . | . . . . . Kinetic . | . . . . . Secondary . | . . . . . Self-Inflicted Damage 314 | . . 26 . 288 Shots 6 | . . 1 . 5 Rammed 7 | . 6 . 1 . Targets Rammed 9 | . 7 . 2 . Kicked . | . . . . . Crushed 2 | . 1 . 1 . Highest Temperature 246 | 60 207 246 189 181 Average Temperature 57 | 30 67 71 44 44 Received Heat Transfer 865 | . 150 129 262 324 Siege Activations . | . . . . . Robots Corrupted 11 | . 2 8 . 1 Combat Hostiles 10 | . 1 8 . 1 Parts Fried 13 | . 3 9 . 1 Impact Corruptions . | . . . . . Robots Melted 1 | . . . 1 . Combat Hostiles 1 | . . . 1 . Parts Melted 3 | . . . 3 . Heat Transferred 2187 | 111 150 50 1110 766 Parts Sabotaged . | . . . . . Parts Stolen . | . . . . . Parts Stripped . | . . . . . Power Chain Reactions 8 | . 4 1 . 3 Alert | -11 -10 -10 -8 -7 ------- Run | Yrd Mat Sub Mat Fac Peak Influence 376 | 5 276 . 362 376 Initial 164 | . 3 . 67 164 Average 175 | 4 151 . 204 191 Maximum Alert Level 1 | . 1 . 1 1 Low Security (%) 58 | 100 64 . 33 68 Level 1 42 | . 35 . 66 31 Level 2 . | . . . . . Level 3 . | . . . . . Level 4 . | . . . . . Level 5 . | . . . . . High Security . | . . . . . Max Security . | . . . . . Squads Dispatched 11 | . 4 . 2 5 Investigation 2 | . 2 . . . Extermination 1 | . . . . 1 Reinforcement 6 | . 2 . 2 2 Assault . | . . . . . Garrison 2 | . . . . 2 Intercept . | . . . . . Searches Triggered . | . . . . . Construction Impeded 1 | . . . . 1 Haulers Reinforced . | . . . . . Active Scanning Responses . | . . . . . Cargo Convoy Interrupts . | . . . . . Stealth | -11 -10 -10 -8 -7 --------- Run | Yrd Mat Sub Mat Fac Distress Signals 6 | . 1 . 2 3 Communications Jammed . | . . . . . Distress Signals . | . . . . . Times Spotted 92 | . 27 24 21 20 Peak Tracking Total 6 | . 5 6 5 3 Tactical Retreats 10 | . 2 3 4 1 Traps | -11 -10 -10 -8 -7 ------- Run | Yrd Mat Sub Mat Fac Traps Triggered 1 | . 1 . . . Indirectly . | . . . . . Trap Hack Attempts . | . . . . . Triggered . | . . . . . Disarmed . | . . . . . Reprogrammed . | . . . . . Reused . | . . . . . Traps Extracted . | . . . . . Installed . | . . . . . Triggered . | . . . . . Machines | -11 -10 -10 -8 -7 ---------- Run | Yrd Mat Sub Mat Fac Machines Disabled 5 | . 1 1 . 3 Max in Single Turn 3 | . 1 1 . 3 Machines Repaired . | . . . . . Machines Dismantled . | . . . . . Machines Sabotaged . | . . . . . Overloaded Fab Kills . | . . . . . Hacking | -11 -10 -10 -8 -7 --------- Run | Yrd Mat Sub Mat Fac Machines Accessed 16 | . 8 4 4 . Terminals 9 | . 5 . 4 . Fabricators . | . . . . . Repair Stations 1 | . 1 . . . Recycling Units 2 | . 2 . . . Scanalyzers . | . . . . . Garrison Access . | . . . . . Total Hacks 42 | . 21 7 14 . Successful 24 | . 11 7 6 . Failed 18 | . 10 . 8 . Catastrophic 5 | . 3 . 2 . Database Lockouts . | . . . . . Manual 18 | . 13 . 5 . Terminals 29 | . 15 . 14 . Fabricators . | . . . . . Repair Stations 2 | . 2 . . . Recycling Units 4 | . 4 . . . Scanalyzers . | . . . . . Garrison Access . | . . . . . Terminal Hacks 16 | . 4 7 5 . Record 4 | . . 4 . . Part Schematic 2 | . 2 . . . Prototype ID Bank 2 | . . . 2 . Open Door 1 | . . 1 . . Branch Access Points 1 | . . . 1 . Emergency Access Points 1 | . . . 1 . Locate Traps 1 | . 1 . . . Dispatch Records 1 | . . . 1 . Maintenance Status 1 | . 1 . . . Derelict Proto ID Bank 1 | . . 1 . . Release Object 1 | . . 1 . . Fabricator Hacks . | . . . . . Repair Station Hacks 2 | . 2 . . . Scan Component 1 | . 1 . . . Repair 1 | . 1 . . . Recycling Unit Hacks . | . . . . . Scanalyzer . | . . . . . Garrison Access Hacks . | . . . . . Unauthorized Hacks 4 | . 3 . 1 . Terminals 2 | . 1 . 1 . Operators 2 | . 1 . 1 . Fabricators . | . . . . . Repair Stations . | . . . . . Recycling Units 2 | . 2 . . . Tunnel 2 | . 2 . . . Scanalyzers . | . . . . . Garrison Access . | . . . . . Data Cores Recovered . | . . . . . Used . | . . . . . Hacking Detections 9 | . 5 . 4 . Full Trace Events 2 | . 2 . . . Feedback Events . | . . . . . Feedback Blocked . | . . . . . Robot Schematics Acquired . | . . . . . Robots Built . | . . . . . Authchips . | . . . . . Time . | . . . . . Total Robot Build Rating . | . . . . . Part Schematics Acquired 2 | . 2 . . . Parts Built . | . . . . . Authchips . | . . . . . Time . | . . . . . Total Part Build Rating . | . . . . . Parts Repaired 1 | . 1 . . . Time 26 | . 26 . . . Parts Recycled . | . . . . . Recycled Matter . | . . . . . Retrieved Matter . | . . . . . Retrieved Components . | . . . . . Parts Scanalyzed . | . . . . . Part Schematics Acquired . | . . . . . Parts Damaged . | . . . . . Bothacking | -11 -10 -10 -8 -7 ------------ Run | Yrd Mat Sub Mat Fac Used RIF Installer . | . . . . . Robots Hacked . | . . . . . Non-combat . | . . . . . Combat . | . . . . . Robot Hacks Applied . | . . . . . Relay Couplers Released . | . . . . . Fabnet Peak Effective % . | . . . . . Robots Rewired . | . . . . . Allies Hacked . | . . . . . Hacks Repelled . | . . . . . Allies | -11 -10 -10 -8 -7 -------- Run | Yrd Mat Sub Mat Fac Total Allies . | . . . . . Largest Group . | . . . . . Highest-Rated Group . | . . . . . Highest-Rated Ally . | . . . . . Total Orders . | . . . . . Ally Attacks . | . . . . . Total Damage . | . . . . . Kills . | . . . . . Allies Corrupted . | . . . . . Allies Melted . | . . . . . Intel | -11 -10 -10 -8 -7 ------- Run | Yrd Mat Sub Mat Fac Robot Analysis Total . | . . . . . Derelict Logs Recovered 2 | . . 2 . . Drone Launches . | . . . . . Drone Recoveries . | . . . . . Exploration | -11 -10 -10 -8 -7 ------------- Run | Yrd Mat Sub Mat Fac Turns Passed 7445 | 31 1258 4545 750 861 Spaces Moved 3559 | 15 532 2511 299 202 Core 1 | . . . . 1 Treads 2976 | 1 532 1943 299 201 Legs 14 | 14 . . . . Wheels 568 | . . 568 . . Hover . | . . . . . Flight . | . . . . . Fastest Speed 110 | 120 160 110 160 160 Average Speed 164 | 122 166 158 160 238 Slowest Speed 400 | 160 240 360 160 400 Overloaded Moves . | . . . . . Propulsion Burnouts . | . . . . . Robots Hopped . | . . . . . Cave-ins Triggered . | . . . . . Exploration Rate (%) 38 | 2 82 82 23 5 Regions Visited 4 Branch Regions 1 Pre-discovered Areas 4 | . 2 2 . . Known Exits Taken . | . . . . . Unknown Exits Taken 4 | 1 1 1 1 . Scrap Searched 7 | . . 7 . . Spaces Dug 16 | . . 16 . . Terrain Destroyed 205 | . 9 61 1 134 Melee . | . . . . . Projectile 1 | . . . 1 . AOE 204 | . 9 61 . 134 Terrain Rammed . | . . . . . Walls Destroyed . | . . . . . Machines Disabled . | . . . . . Actions | -11 -10 -10 -8 -7 --------- Run | Yrd Mat Sub Mat Fac Total 4775 | 25 822 2962 478 488 Wait 739 | 2 212 224 103 198 Move 3555 | 14 531 2510 298 202 Hop . | . . . . . Pick Up 55 | . 13 36 1 5 Fast Attach 36 | 1 3 16 10 6 Attach 33 | 2 . 21 4 6 Detach 21 | 2 . 11 4 4 Swap 29 | . 11 7 2 9 Drop 53 | 2 6 39 3 3 Fire 226 | 2 39 79 51 55 Melee 1 | . . 1 . . Ram . | . . . . . Kick . | . . . . . Crush 9 | . 7 . 2 . Escape Stasis . | . . . . . Rewire 2 | . . 2 . . Trap . | . . . . . Miscellaneous 16 | . . 16 . . Route ------- -11/Scrapyard -10/Materials (discovered 4 exits: [*Mat x2] / [*Min] / *Sub) -10/Subcaves (discovered 3 exits: *Mat x2 / [Rec]) -8/Materials -7/Factory History --------- Turn | Location | Event 1 | -11/Scrapyard | Discovered new exit (range 1) 32 | -11/Scrapyard | Entered Materials 316 | -10/Materials | Build established: Mutant 331 | -10/Materials | Discovered new exit (range 9) 553 | -10/Materials | Repaired Lgt. Treads 570 | -10/Materials | Discovered new exit (range 16) 1013 | -10/Materials | Discovered new exit (range 6) 1258 | -10/Materials | Discovered new exit (range 4) 1290 | -10/Materials | Entered Subcaves 1475 | -10/Subcaves | Shifting Twisted Machinery released Battle Cannon 1522 | -10/Subcaves | Shifting Twisted Machinery released Flamer 1713 | -10/Subcaves | Discovered new exit (range 11) 2000 | -10/Subcaves | Shifting Twisted Machinery released Battle Cannon 2004 | -10/Subcaves | Shifting Twisted Machinery released Slug Cannon 2473 | -10/Subcaves | Visited Clippyterm 2478 | -10/Subcaves | Learned location of Extension (-5) 2478 | -10/Subcaves | Learned Factory stockpile data 3164 | -10/Subcaves | Core integrity fell below 50% 3219 | -10/Subcaves | Learned Materials stockpile data 3364 | -10/Subcaves | Discovered new exit (range 12) 3922 | -10/Subcaves | Discovered new exit (range 9) 4036 | -10/Subcaves | Learned location of Zion (-7) 4036 | -10/Subcaves | Met a Zionite searching for "candidates" 4330 | -10/Subcaves | Visited 4L-MR0's lab 4943 | -10/Subcaves | Build established: Scavenger-Mutant 5468 | -10/Subcaves | Build established: Mutant 5756 | -10/Subcaves | Found Powered Cannon 5835 | -10/Subcaves | Entered Materials 5835 | -8/Materials | Evolved 4 slots: Propulsion x2, Utility x1, Weapon x1 6349 | -8/Materials | Discovered new exit (range 16) 6581 | -8/Materials | Build established: Scavenger-Tank 6585 | -8/Materials | Entered Factory 6585 | -7/Factory | Evolved 2 slots: Utility x2 7007 | -7/Factory | Build established: Tank 7265 | -7/Factory | Garrison activated, responded to threat 7396 | -7/Factory | Lost 8 parts (4n2u2w) 7446 | -7/Factory | Self-destructed Last Messages --------------- 07429_ Critical hit (Burn: +37). 07429_ U-05 Engineer builds a Wall. 07431_ K-01 Serf collects debris. 07432_ U-05 Engineer lays Concrete. 07433_ U-05 Engineer builds a Wall. 07433_ U-05 Engineer lays Concrete. 07435_ Critical hit (Burn: +37). 07436_ U-05 Engineer lays Concrete. 07437_ Particle Gun destroyed. 07437_ U-05 Engineer lays Concrete. 07437_ Acquired Sml. Storage Unit. 07438_ U-05 Engineer builds a Wall. 07439_ U-05 Engineer destroyed. 07440_ U-05 Engineer lays Concrete. 07441_ Dropped Huge Storage Unit. 07441_ U-05 Engineer lays Concrete. 07441_ Acquired 118 matter. 07445_ Critical hit (Burn: +37). 07445_ U-05 Engineer lays Concrete. 07446_ U-05 Engineer builds a Wall. Map ----- +----------------------------------------------------+ | ?????????????????????????????????????????????????? | | ?????????????????????????????????????????????????? | | ?????????????????????????????????????????????????? | | ?????????????????????????????????????????????????? | | ?????????????????????????????????????????????????? | | ?????????????????????????????????????????????????? | | ?????????????????????????????????????????????????? | | ?????????????????????????????????????????????????? | | ??!?????????????????????????????????? ???????????? | | ????????????????????????????????????? ???????????? | | ?????????????????????? ?????????????? ???????????? | | ???????????????????? ?????????????? ???????????? | | ????????????????? ?????????????? ???????????? | | ??????????????? ?????????????? ???????????? | | ???????????????? ????????????? ???????????? | | ???????????????## # ????????????# #??????????? | | ????????????#### ## ????????????# #??????????? | | ????????????? ! # ????????????# #??????????? | | ??????????????? # ????????????# #??????????? | | ???????????????? # ????????????# #??????????? | | ????????????????? + ??##????????# #??????????? | | ??????????????????# ## #????????# #? ##??????? | | ??????????????????# u # ##?????? #??????? | | ????????????####### !!##= ### ## ##u# ??????? | | ????????? w =%!*! [g%*# ??????? | | ????????? =!!=@!| % =* = ??????? | | ????????? !!!]! ??????? | | ????????? =*![ ???????? | | ?????????? k * =% ???????? | | ??????????###########+########### # ##???????? | | ???????????????????????????????## ############ | | ????????????????????????????????# | | ????????????????????????????????# % | | ????????????????????????? / | | ????????????????????????" ##### | | ????????????????????????????????# | | ????????????????????????????????### ########### | | ?????????????????????????????????##+########### | | ???????????????????????????????# # | | ???????????????????????????????# # | | ???????????????????????????????# """ """ """ #! | | ???????????????????????????????# """ """ """ +%! | | ???????????????????????????????# """ """ """%#!* | | ???????????????????????????????#= [# | | ????????????????????????????????### ######+#"## | | ????????????????????????????????# """T = | | ????????????????????????????????# " | | ???????????????????????????????## | | ???????????????????????????????# """ ! | | ???????????????????????????????## """ | +----------------------------------------------------+ Best States ------------- Heat Dissipation 48 Energy Generation 16 Energy Capacity 290 Matter Stores 300 Matter Capacity 300 Sight Range 16 Terrain Scan Density 10 Armor Coverage 800 Evasion (%) 40 Recoil Reduction 4 Item Schematics ----------------- Huge Storage Unit | -10/Materials | Hacked Hcp. Storage Unit | -10/Materials | Hacked Robot Schematics ------------------ None Fabricated ------------ Nothing Alien Tech Used ----------------- None Achievements -------------- None Challenges ------------ None Game ------ Seed TimingPiercingFrame Manual? 0 Play Time 01:09:49 Cumulative 236.2 hours Start 2024.08.06 @ 15:21:25 End 2025.01.06 @ 13:15:18 Sessions 5 Manual Loads 0 Difficulty Rogue Special Mode None Game No. 57 Rogue 57 Adventurer 0 Explorer 0 Win Type - Total 10 Types 5/0/2/0/1/1/0/1/0 Lore% 57 Gallery% 79 Achievement% 76 Wizard Run 0 Options --------- Layout 2 ASCII 0 Keyboard 0 Movement Vi Keybinds 0 Fullscreen 1 Font 24/Smallcaps Map View 50x44 Zoom Use 0% Tactical HUD 1 Map Filters NONE Filters NONE Steam 1 RUN: c7c6dbcd-3894-4d1e-bc20-22396e89d87d